bitfinex-derivatives/quotes_BTCF0:USTF0_20251009
["timestamp","ask_amount","ask_price","bid_price","bid_amount"]
[1760026132866,0.5718,121360.0,121350.0,1.66474525]
[1760026133168,0.81845004,121360.0,121350.0,0.91322525]
[1760026133571,0.81845004,121360.0,121350.0,1.66462525]
[1760026133862,0.81845004,121360.0,121350.0,0.91322525]
[1760026134076,0.5718,121360.0,121350.0,1.66462525]
[1760026134369,0.81845004,121360.0,121350.0,1.66462525]
[1760026134764,0.81845004,121360.0,121350.0,1.41797521]
[1760026135066,0.81845004,121360.0,121350.0,1.66462525]
[1760026135267,0.81845004,121360.0,121350.0,0.91322525]
[1760026135569,0.81845004,121360.0,121350.0,1.66462525]
[1760026136768,1.14746658,121360.0,121350.0,0.28497526]
[1760026136966,1.06510008,121360.0,121350.0,0.53734846]
[1760026137268,1.06510008,121360.0,121350.0,1.28874846]
[1760026138676,1.54746658,121360.0,121350.0,0.14079526]
[1760026138966,2.29882658,121360.0,121350.0,0.17985375]
[1760026139268,2.29882658,121360.0,121350.0,0.21566375]
[1760026139761,1.54746658,121360.0,121350.0,0.11211]
[1760026139965,2.29882658,121360.0,121350.0,0.0763]
[1760026140362,2.54547662,121360.0,121350.0,0.18002486]
[1760026140764,2.54547662,121360.0,121350.0,0.10372486]
[1760026140957,0.0823866,121340.0,121320.0,0.37412241]
[1760026141165,0.60745004,121330.0,121320.0,0.47412241]
[1760026141360,0.90745004,121330.0,121320.0,0.47412241]
[1760026141766,0.90745004,121330.0,121320.0,0.55651601]
[1760026141964,0.90745004,121330.0,121320.0,0.36451986]
[1760026142367,0.90745004,121330.0,121320.0,0.2165736]
[1760026143068,1.63648688,121330.0,121320.0,0.14418]
[1760026143270,1.30745004,121330.0,121320.0,0.2265736]
[1760026143469,2.05881004,121330.0,121320.0,0.2265736]
[1760026143770,2.05885004,121330.0,121320.0,0.64322364]
[1760026143969,2.05885004,121330.0,121320.0,0.3965736]
[1760026144970,2.05985004,121330.0,121320.0,0.3965736]
[1760026145871,2.05989004,121330.0,121320.0,0.3965736]
[1760026146475,0.6618,121330.0,121320.0,0.70570364]
[1760026146676,1.65989004,121330.0,121320.0,0.70570364]
[1760026147175,1.65989004,121330.0,121320.0,0.8536499]
[1760026147576,0.90845004,121330.0,121320.0,0.7911699]
[1760026147976,0.90845004,121330.0,121320.0,0.70570364]
[1760026148170,0.90745004,121330.0,121320.0,0.64322364]
[1760026149277,0.90845004,121330.0,121320.0,0.3965736]
[1760026153480,0.99065963,121330.0,121320.0,0.3965736]
[1760026154680,0.6618,121330.0,121320.0,0.3965736]
[1760026157289,0.99065963,121330.0,121320.0,0.4365736]
[1760026157584,0.98965963,121330.0,121320.0,0.2265736]
[1760026157774,0.99065963,121330.0,121320.0,0.2265736]
[1760026157978,0.99065963,121330.0,121320.0,0.4265736]
[1760026158778,0.6618,121330.0,121320.0,0.4265736]
[1760026159083,0.99065963,121330.0,121320.0,0.4265736]
[1760026164891,0.6618,121330.0,121320.0,0.4265736]
[1760026166487,0.6608,121330.0,121320.0,0.4265736]
[1760026166789,0.6618,121330.0,121320.0,0.4265736]
[1760026167385,0.6618,121330.0,121320.0,0.57451986]
[1760026168390,0.6618,121330.0,121320.0,0.63553986]
[1760026168595,0.301,121330.0,121320.0,2.05405912]
[1760026168788,0.301,121330.0,121320.0,2.80549912]
[1760026168987,0.301,121330.0,121320.0,2.65755286]
[1760026169593,0.3,121330.0,121320.0,2.65755286]
[1760026170592,0.3,121330.0,121320.0,2.32869323]
[1760026171392,0.3,121330.0,121320.0,2.65755286]
[1760026171787,0.3,121330.0,121320.0,1.90611286]
[1760026171988,0.3,121330.0,121320.0,2.65751286]
[1760026172186,0.3,121330.0,121320.0,1.90611286]
[1760026172387,0.3,121330.0,121320.0,2.65751286]
[1760026173390,0.3,121330.0,121320.0,2.84950901]
[1760026174095,0.3,121330.0,121320.0,2.52064938]
[1760026174596,0.19627514,121330.0,121320.0,1.90611286]
[1760026175084,0.16402054,121330.0,121320.0,2.65747286]
[1760026175485,0.16402054,121330.0,121320.0,2.80560257]
[1760026175695,0.16402054,121330.0,121320.0,2.05424257]
[1760026175895,0.16402054,121330.0,121320.0,2.80560257]
[1760026176190,0.3608,121360.0,121350.0,0.0823732]
[1760026176398,0.5208,121360.0,121350.0,1.2195032]
[1760026176694,0.5208,121360.0,121350.0,1.54836283]
[1760026176894,0.16,121360.0,121350.0,1.90916283]
[1760026177094,0.16,121360.0,121350.0,1.65202429]
[1760026177492,0.161,121360.0,121350.0,1.65202429]
[1760026177789,0.161,121360.0,121350.0,0.90066429]
[1760026177988,0.5218,121360.0,121350.0,1.32312466]
[1760026178387,0.5218,121360.0,121350.0,0.4071232]
[1760026178586,0.5218,121360.0,121350.0,1.22314259]
[1760026179097,0.5218,121360.0,121350.0,0.47182259]
[1760026179297,0.5218,121360.0,121350.0,1.22314259]
[1760026179496,0.5218,121360.0,121350.0,0.47182259]
[1760026179697,0.5218,121360.0,121350.0,1.22310259]
[1760026179894,0.5218,121360.0,121350.0,1.23751457]
[1760026180093,0.161,121360.0,121350.0,1.23751457]
[1760026180295,0.161,121360.0,121350.0,1.34117603]
[1760026180693,0.161,121360.0,121350.0,1.40219603]
[1760026180898,0.161,121360.0,121350.0,0.58989603]
[1760026181196,0.161,121360.0,121350.0,1.34117603]
[1760026182498,0.5218,121360.0,121350.0,1.34113603]
[1760026183801,0.5218,121360.0,121350.0,0.58989603]
[1760026183995,0.5218,121360.0,121350.0,1.23747457]
[1760026184500,0.5218,121360.0,121350.0,0.54431457]
[1760026184696,0.5218,121360.0,121350.0,1.29551457]
[1760026186699,0.161,121360.0,121350.0,1.29551457]
[1760026187096,0.161,121360.0,121350.0,1.6243742]
[1760026187902,0.161,121360.0,121350.0,1.72803566]
[1760026188103,0.5218,121360.0,121350.0,1.72803566]
[1760026188698,0.161,121360.0,121350.0,1.72803566]
[1760026188893,0.161,121360.0,121350.0,1.72799566]
[1760026189200,0.5218,121360.0,121350.0,1.6243342]
[1760026189599,0.5218,121360.0,121350.0,0.8731742]
[1760026189795,0.5218,121360.0,121350.0,1.6243342]
[1760026190998,1.20919362,121390.0,121370.0,0.03553]
[1760026191207,1.69805325,121390.0,121370.0,0.83518963]
[1760026192104,1.61570675,121390.0,121370.0,0.83518963]
[1760026192407,1.61570675,121390.0,121370.0,0.49633]
[1760026192408,1.61770675,121390.0,121370.0,0.49633]
[1760026192598,1.61770675,121390.0,121370.0,0.82518963]
[1760026192798,1.25690675,121390.0,121370.0,0.82518963]
[1760026193503,1.25690675,121390.0,121370.0,0.82852927]
[1760026193705,1.25690675,121390.0,121370.0,0.60966964]
[1760026194500,1.08965963,121380.0,121370.0,0.10333964]
[1760026194806,2.10073963,121380.0,121350.0,0.52883903]
[1760026195008,0.68965963,121370.0,121350.0,0.75883903]
[1760026195301,0.75108,121360.0,121350.0,0.65549939]
[1760026195503,1.07108,121360.0,121350.0,0.65549939]
[1760026195798,1.47108,121360.0,121350.0,0.65549939]
[1760026195994,1.47108,121360.0,121350.0,0.75883903]
[1760026196192,0.72,121360.0,121350.0,0.75883903]
[1760026196395,2.16073963,121360.0,121350.0,0.10333964]
[1760026196596,0.721,121360.0,121350.0,0.10333964]
[1760026196899,1.47208,121360.0,121340.0,0.43219927]
[1760026197499,0.721,121360.0,121340.0,0.82852927]
[1760026197806,0.75108,121350.0,121340.0,0.46772927]
[1760026198000,1.04108,121350.0,121340.0,0.46772927]
[1760026198200,1.04108,121350.0,121340.0,0.13886964]
[1760026198401,1.04108,121350.0,121340.0,0.46772927]
[1760026198895,0.29,121350.0,121340.0,0.82852927]
[1760026199102,1.04208,121350.0,121340.0,0.72518963]
[1760026200207,0.291,121350.0,121340.0,0.96518963]
[1760026200505,0.291,121350.0,121340.0,2.32311934]
[1760026200701,0.291,121350.0,121340.0,2.75545625]
[1760026201011,0.291,121350.0,121340.0,2.32311934]
[1760026201213,0.291,121350.0,121340.0,2.17498963]
[1760026202409,0.29,121350.0,121340.0,2.17498963]
[1760026203208,0.29,121350.0,121340.0,1.42386963]
[1760026203405,0.29,121350.0,121340.0,2.17498963]
[1760026203911,0.29,121350.0,121340.0,1.42386963]
[1760026204208,0.29,121350.0,121340.0,2.50384926]
[1760026205008,0.29,121350.0,121340.0,2.17498963]
[1760026205609,0.29,121350.0,121340.0,1.42386963]
[1760026205809,0.29,121350.0,121340.0,2.17494963]
[1760026206007,0.01457027,121390.0,121380.0,0.03553]
[1760026206202,0.03,121390.0,121380.0,0.36438963]
[1760026206406,0.31501697,121390.0,121380.0,0.36438963]
[1760026206809,0.3,121390.0,121380.0,0.36438963]
[1760026207015,0.3,121390.0,121380.0,0.94518963]
[1760026207311,0.3,121390.0,121380.0,1.04859175]
[1760026208412,0.3,121390.0,121380.0,1.79963175]
[1760026208711,0.302,121390.0,121380.0,1.79963175]
[1760026209410,0.302,121390.0,121380.0,1.11589028]
[1760026209709,0.302,121390.0,121380.0,2.16348816]
[1760026210113,0.302,121390.0,121380.0,2.26689028]
[1760026210514,0.302,121390.0,121380.0,2.16348816]
[1760026211017,0.302,121390.0,121380.0,2.26689028]
[1760026211217,0.302,121390.0,121380.0,2.16348816]
[1760026212117,0.302,121390.0,121380.0,1.51589028]
[1760026212317,0.302,121390.0,121380.0,2.26689028]
[1760026212713,0.302,121390.0,121380.0,1.51589028]
[1760026212920,0.302,121390.0,121380.0,2.26685028]
[1760026213421,0.302,121390.0,121380.0,2.43061515]
[1760026213822,0.302,121390.0,121380.0,1.67965515]
[1760026214020,0.302,121390.0,121380.0,2.6768874]
[1760026214622,0.302,121390.0,121380.0,2.57348528]
[1760026215421,0.302,121390.0,121380.0,1.57625303]
[1760026215616,0.302,121390.0,121380.0,2.32717303]
[1760026216122,0.302,121390.0,121380.0,1.17625303]
[1760026216316,0.302,121390.0,121380.0,1.92717303]
[1760026216512,0.302,121390.0,121380.0,2.03057515]
[1760026217216,0.302,121390.0,121380.0,1.9259674]
[1760026217419,0.3608,121440.0,121410.0,0.03352]
[1760026217618,0.6508,121440.0,121430.0,0.24631225]
[1760026217819,0.89711225,121440.0,121430.0,0.27983225]
[1760026218127,0.89711225,121440.0,121420.0,0.64063225]
[1760026218320,1.31202529,121440.0,121420.0,0.70767155]
[1760026218515,1.31402529,121440.0,121430.0,0.24631225]
[1760026218924,0.91402529,121440.0,121420.0,0.70767155]
[1760026219124,1.31402529,121440.0,121420.0,0.70767155]
[1760026219623,1.06771304,121440.0,121420.0,0.4613593]
[1760026220522,1.45244923,121440.0,121420.0,0.4613593]
[1760026221022,1.45244923,121440.0,121420.0,0.4278393]
[1760026221222,2.20324923,121440.0,121420.0,0.4278393]
[1760026221425,1.81851304,121440.0,121420.0,0.0670393]
[1760026221723,0.38473619,121430.0,121410.0,1.14512]
[1760026221919,0.29,121430.0,121420.0,0.3608]
[1760026222124,0.29,121430.0,121420.0,0.03352]
[1760026222324,0.69,121430.0,121420.0,0.39432]
[1760026223428,0.29,121430.0,121420.0,0.62432]
[1760026223726,0.2910348,121430.0,121420.0,0.6905428]
[1760026224026,0.2910348,121430.0,121420.0,1.07527899]
[1760026224526,0.2910348,121430.0,121420.0,0.6905428]
[1760026224725,0.2910348,121430.0,121420.0,1.07527899]
[1760026225526,0.2910348,121430.0,121420.0,1.47527899]
[1760026226621,0.2910348,121430.0,121420.0,1.48901752]
[1760026228532,0.2910348,121430.0,121420.0,2.23965752]
[1760026229033,0.2910348,121430.0,121420.0,2.32198332]
[1760026230134,0.2910348,121430.0,121420.0,1.57134332]
[1760026230342,0.2910348,121430.0,121420.0,2.32194332]
[1760026230733,0.2910348,121430.0,121420.0,1.18660713]
[1760026230929,0.2910348,121430.0,121420.0,0.78660713]
[1760026231337,0.2910348,121430.0,121420.0,1.92194332]
[1760026233832,0.2910348,121430.0,121420.0,1.92186332]
[1760026234438,0.2910348,121430.0,121420.0,1.90812479]
[1760026235036,0.2910348,121430.0,121420.0,1.15760479]
[1760026235536,0.2910348,121430.0,121420.0,1.90812479]
[1760026236438,0.2910348,121430.0,121420.0,1.5233886]
[1760026236737,0.2910348,121430.0,121420.0,1.90812479]
[1760026237739,0.2910348,121430.0,121420.0,1.90808479]
[1760026238441,0.2910348,121430.0,121420.0,1.15760479]
[1760026238644,0.2910348,121430.0,121420.0,1.90808479]
[1760026238840,0.2910348,121430.0,121420.0,1.15760479]
[1760026239040,0.2910348,121430.0,121420.0,1.90808479]
[1760026239937,0.2910348,121430.0,121420.0,1.90804479]
[1760026241543,0.2910348,121430.0,121420.0,2.01567472]
[1760026241737,0.2910348,121430.0,121420.0,1.26523472]
[1760026242040,0.2910348,121430.0,121420.0,2.01567472]
[1760026246850,0.2910348,121430.0,121420.0,2.09193472]
[1760026248552,0.2910348,121430.0,121420.0,1.34149472]
[1760026248849,0.02195,121440.0,121430.0,0.1949341]
[1760026249044,0.14195,121440.0,121430.0,2.13846022]
[1760026249249,0.29195,121440.0,121430.0,4.03846022]
[1760026252554,0.29195,121440.0,121430.0,4.14186234]
[1760026252947,0.29195,121440.0,121430.0,4.03846022]
[1760026253249,0.30567,121440.0,121430.0,2.2831141]
[1760026253442,0.95185306,121440.0,121430.0,0.79929716]
[1760026253648,0.70567,121440.0,121430.0,1.76957716]
[1760026254055,0.70567,121440.0,121430.0,0.68929716]
[1760026254355,0.70567,121440.0,121430.0,1.54953716]
[1760026254546,0.70567,121440.0,121430.0,0.5431141]
[1760026254746,0.70567,121440.0,121430.0,1.53953716]
[1760026255142,0.7879822,121440.0,121430.0,0.68929716]
[1760026255348,0.193889,121430.0,121420.0,0.38866586]
[1760026255653,0.74007206,121430.0,121420.0,1.32123166]
[1760026255951,0.0823325,121410.0,121400.0,0.10340212]
[1760026256253,0.94931556,121410.0,121400.0,0.10340212]
[1760026256551,0.94931556,121410.0,121390.0,1.22465898]
[1760026256742,0.94931556,121410.0,121390.0,1.35465898]
[1760026256944,0.0823393,121400.0,121390.0,1.25125686]
[1760026257145,0.26,121400.0,121390.0,1.12125686]
[1760026257351,0.26,121400.0,121390.0,1.22125686]
[1760026258445,0.26,121400.0,121390.0,1.01181686]
[1760026258653,0.26,121400.0,121390.0,2.11168204]
[1760026259752,0.26,121400.0,121390.0,1.76140204]
[1760026259952,0.26,121400.0,121390.0,2.40827992]
[1760026260649,0.26,121400.0,121390.0,1.65799992]
[1760026260851,0.26,121400.0,121390.0,1.76209686]
[1760026261958,0.26,121400.0,121390.0,2.00827992]
[1760026262455,0.26,121400.0,121390.0,2.00831992]
[1760026263050,0.26,121400.0,121390.0,2.51172204]
[1760026263452,0.26,121400.0,121390.0,2.55644963]
[1760026263752,0.26,121400.0,121390.0,2.90588822]
[1760026263954,0.26,121400.0,121390.0,2.65970516]
[1760026264159,0.26,121400.0,121390.0,2.55644963]
[1760026264451,0.26,121400.0,121390.0,2.40831992]
[1760026264658,0.26,121400.0,121390.0,2.12831992]
[1760026265054,0.184572,121400.0,121390.0,2.37450298]
[1760026265252,0.1570861,121400.0,121390.0,2.37450298]
[1760026265453,0.1570861,121400.0,121390.0,1.62418298]
[1760026265755,0.0057617,121400.0,121390.0,2.37450298]
[1760026265957,0.68928986,121450.0,121430.0,0.124809]
[1760026266156,0.61848986,121450.0,121430.0,0.73179206]
[1760026266755,0.61848986,121450.0,121430.0,0.485609]
[1760026267063,0.61848986,121450.0,121440.0,0.0823122]
[1760026267262,1.01848986,121450.0,121440.0,0.0823122]
[1760026267464,0.61848986,121450.0,121440.0,0.0823122]
[1760026268657,0.3723054,121450.0,121440.0,0.37098526]
[1760026269059,0.61848846,121450.0,121440.0,0.37098526]
[1760026269264,0.61848846,121450.0,121440.0,0.73178526]
[1760026269560,0.61848846,121450.0,121440.0,0.37098526]
[1760026269761,0.0823122,121440.0,121430.0,0.14933055]
[1760026269957,1.24547832,121440.0,121430.0,0.14933315]
[1760026270156,0.63849526,121440.0,121430.0,0.14933315]
[1760026270356,0.99929526,121440.0,121430.0,0.14933315]
[1760026270662,0.63849526,121440.0,121430.0,0.14933315]
[1760026270865,0.7531122,121440.0,121430.0,0.14933315]
[1760026271059,0.99929526,121440.0,121430.0,0.14933315]
[1760026271752,0.91698306,121440.0,121430.0,0.39551621]
[1760026271958,0.6708,121440.0,121430.0,0.43612621]
[1760026272158,0.6708,121440.0,121430.0,0.18994315]
[1760026272361,0.6708,121440.0,121430.0,0.43612621]
[1760026272662,0.99929526,121440.0,121430.0,0.43612621]
[1760026272961,0.99929526,121440.0,121430.0,0.39551621]
[1760026274763,0.99929526,121440.0,121430.0,0.24618306]
[1760026275066,0.082319,121430.0,121420.0,1.1934012]
[1760026275362,0.082319,121430.0,121420.0,1.04061454]
[1760026275363,0.27,121430.0,121420.0,1.04061454]
[1760026275665,0.27,121430.0,121420.0,2.10148592]
[1760026276058,0.27,121430.0,121420.0,1.35120592]
[1760026276358,0.27,121430.0,121420.0,2.10148592]
[1760026278460,0.27,121430.0,121420.0,1.35120592]
[1760026278963,0.27,121430.0,121420.0,2.10144592]
[1760026280463,0.27,121430.0,121420.0,1.49933563]
[1760026280769,0.27,121430.0,121420.0,1.84953563]
[1760026281065,0.27,121430.0,121420.0,1.09933563]
[1760026281266,0.27,121430.0,121420.0,1.70140592]
[1760026281658,0.27,121430.0,121420.0,1.37317842]
[1760026281867,0.27,121430.0,121420.0,1.70140592]
[1760026283562,0.27,121430.0,121420.0,1.84953563]
[1760026284369,0.27,121430.0,121420.0,1.70140592]
[1760026285165,0.27,121430.0,121420.0,1.84953563]
[1760026285561,0.27,121430.0,121420.0,1.09933563]
[1760026285768,0.27,121430.0,121420.0,1.49933563]
[1760026285965,0.27,121430.0,121420.0,2.24949563]
[1760026289668,0.27,121430.0,121420.0,2.24945563]
[1760026290367,0.27,121430.0,121420.0,1.49933563]
[1760026290567,0.27,121430.0,121420.0,2.24945563]
[1760026291564,0.27,121430.0,121420.0,1.49933563]
[1760026291966,0.27,121430.0,121420.0,2.24945563]
[1760026292167,0.00236,121460.0,121450.0,0.1976454]
[1760026292468,0.05236,121460.0,121450.0,1.5620629]
[1760026292663,0.28236,121460.0,121450.0,1.66540087]
[1760026292863,0.28236,121460.0,121450.0,1.67773517]
[1760026293372,0.28236,121460.0,121450.0,1.5743972]
[1760026293672,0.28236,121460.0,121450.0,0.8119429]
[1760026293970,0.28236,121460.0,121450.0,1.5620229]
[1760026295072,0.28236,121460.0,121450.0,1.57453957]
[1760026295268,0.28236,121460.0,121450.0,1.5620229]
[1760026296672,0.28236,121460.0,121450.0,1.57435932]
[1760026297176,0.28236,121460.0,121450.0,1.5620229]
[1760026298274,0.28236,121460.0,121450.0,1.2337954]
[1760026298675,0.28236,121460.0,121450.0,1.5620229]
[1760026299078,0.28236,121460.0,121450.0,0.8119429]
[1760026299276,0.28236,121460.0,121450.0,1.5619829]
[1760026302775,0.28236,121460.0,121450.0,1.66532087]
[1760026303178,0.28236,121460.0,121450.0,1.33709337]
[1760026303380,0.28236,121460.0,121450.0,1.66532087]
[1760026304278,0.28236,121460.0,121450.0,1.5619829]
[1760026304876,0.28236,121460.0,121450.0,0.8790729]
[1760026305074,0.28236,121460.0,121450.0,1.6290329]
[1760026305673,0.28236,121460.0,121450.0,0.8119429]
[1760026305878,0.28236,121460.0,121450.0,1.5619029]
[1760026306482,0.28236,121460.0,121450.0,0.8843029]
[1760026306680,0.28236,121460.0,121450.0,1.6342629]
[1760026306881,0.28236,121460.0,121450.0,1.3060354]
[1760026307082,0.28236,121460.0,121450.0,1.6342629]
[1760026309583,0.28236,121460.0,121450.0,1.6342229]
[1760026309779,0.28236,121460.0,121450.0,0.8119429]
[1760026309985,0.28236,121460.0,121450.0,1.5618629]
[1760026311082,0.28236,121460.0,121450.0,0.8843029]
[1760026311488,0.28236,121460.0,121450.0,1.5618629]
[1760026311783,0.7646586,121460.0,121450.0,0.10319568]
[1760026311982,1.4536861,121460.0,121450.0,0.04824568]
[1760026312188,0.0823054,121450.0,121440.0,0.07624]
[1760026312382,0.0823122,121440.0,121430.0,0.18873971]
[1760026312590,0.082319,121430.0,121420.0,0.10512722]
[1760026312884,0.6905465,121430.0,121420.0,0.06451722]
[1760026313092,0.0823258,121420.0,121410.0,0.63293021]
[1760026313285,0.4023258,121420.0,121410.0,0.63293021]
[1760026313985,0.4023258,121420.0,121410.0,0.60035771]
[1760026314479,0.4023258,121420.0,121410.0,0.66488024]
[1760026314678,0.4033258,121420.0,121410.0,0.66488024]
[1760026315090,0.4033258,121420.0,121410.0,1.41480024]
[1760026315795,0.4043258,121420.0,121410.0,1.26667053]
[1760026315999,0.4043258,121420.0,121410.0,1.08597244]
[1760026316792,0.4043258,121420.0,121410.0,0.33605244]
[1760026316997,0.322,121420.0,121410.0,1.42507994]
[1760026317299,0.26386,121420.0,121410.0,2.17499994]
[1760026319391,0.26386,121420.0,121410.0,1.42507994]
[1760026319597,0.26386,121420.0,121410.0,2.17503994]
[1760026319797,0.2036992,121420.0,121410.0,2.17503994]
[1760026321494,0.2036992,121420.0,121410.0,2.02751053]
[1760026322293,0.2036992,121420.0,121410.0,1.27755053]
[1760026322493,0.2036992,121420.0,121410.0,2.02747053]
[1760026322995,0.2036992,121420.0,121410.0,1.27755053]
[1760026323200,0.2036992,121420.0,121410.0,2.02747053]
[1760026325897,0.2036992,121420.0,121410.0,2.17482549]
[1760026326899,0.1723765,121420.0,121410.0,2.17482549]
[1760026327498,0.1723765,121420.0,121410.0,2.02747053]
[1760026330602,0.1723765,121420.0,121410.0,2.21946668]
[1760026330803,0.1723765,121420.0,121410.0,2.21942668]
[1760026331004,0.1723765,121420.0,121410.0,1.46954668]
[1760026331205,0.1723765,121420.0,121410.0,2.21942668]
[1760026332003,0.1723765,121420.0,121410.0,2.02743053]
[1760026333006,0.1723765,121420.0,121410.0,2.21942668]
[1760026334206,0.1723765,121420.0,121410.0,2.02743053]
[1760026335398,0.1723765,121420.0,121410.0,2.21942668]
[1760026337507,0.1723765,121420.0,121410.0,2.62955325]
[1760026338005,0.1723765,121420.0,121410.0,2.4375571]
[1760026339105,0.1723765,121420.0,121410.0,2.62955325]
[1760026339507,0.1723765,121420.0,121410.0,2.70581325]
[1760026339708,0.03819959,121420.0,121410.0,2.70581325]
[1760026339904,0.03819959,121420.0,121410.0,1.95601325]
[1760026340106,0.262,121420.0,121410.0,2.70581325]
[1760026340307,0.262,121420.0,121410.0,2.5138171]
[1760026340802,0.662,121420.0,121410.0,0.69872303]
[1760026341010,0.662,121420.0,121410.0,0.94486772]
[1760026341203,0.662,121420.0,121410.0,1.69466772]
[1760026341403,0.662,121420.0,121410.0,1.19101241]
[1760026341605,0.662,121420.0,121410.0,1.94081241]
[1760026342110,0.662,121420.0,121410.0,1.19101241]
[1760026342609,0.662,121420.0,121410.0,1.94081241]
[1760026342806,0.662,121420.0,121410.0,1.19101241]
[1760026343108,0.662,121420.0,121410.0,1.94081241]
[1760026344509,0.662,121420.0,121410.0,2.13256914]
[1760026347513,0.662,121420.0,121410.0,1.38276914]
[1760026348013,0.662,121420.0,121410.0,2.13256914]
[1760026348415,0.662,121420.0,121410.0,1.38276914]
[1760026348610,0.662,121420.0,121410.0,2.13256914]
[1760026349009,0.662,121420.0,121410.0,1.30962914]
[1760026349209,0.662,121420.0,121410.0,1.11787241]
[1760026349411,0.662,121420.0,121410.0,1.86767241]
[1760026349607,0.662,121420.0,121410.0,1.11787241]
[1760026349813,1.59741518,121420.0,121410.0,0.18245253]
[1760026350109,1.59741518,121420.0,121410.0,0.22403921]
[1760026350510,1.59741518,121420.0,121410.0,0.4701839]
[1760026350511,1.35127049,121420.0,121410.0,0.4701839]
[1760026350711,2.10107049,121420.0,121410.0,0.5525164]
[1760026351315,2.10107049,121420.0,121410.0,0.4701839]
[1760026351609,2.10107049,121420.0,121410.0,0.32240469]
[1760026352116,1.35127049,121420.0,121410.0,0.40473719]
[1760026352414,2.10107049,121420.0,121410.0,0.44896719]
[1760026355015,2.10111049,121420.0,121410.0,0.36663469]
[1760026355317,1.35127049,121420.0,121410.0,0.44896719]
[1760026355614,2.10111049,121420.0,121410.0,0.44896719]
[1760026355816,2.10111049,121420.0,121410.0,0.5967464]
[1760026358311,1.35127049,121420.0,121410.0,0.5967464]
[1760026358518,2.10111049,121420.0,121410.0,0.5967464]
[1760026358912,2.10111049,121420.0,121410.0,0.5144139]
[1760026359108,2.10111049,121420.0,121410.0,0.4701839]
[1760026359308,1.1051258,121420.0,121410.0,0.5525164]
[1760026359513,1.8549658,121420.0,121410.0,0.5965564]
[1760026359713,2.10111049,121420.0,121410.0,0.44877719]
[1760026360315,2.10111049,121420.0,121410.0,0.40473719]
[1760026360519,2.10111049,121420.0,121410.0,0.1585925]
[1760026360720,2.10111049,121420.0,121410.0,0.40473719]
[1760026361017,2.10115049,121420.0,121410.0,0.40473719]
[1760026361320,2.34729518,121420.0,121410.0,0.40473719]
[1760026362312,1.94729518,121420.0,121410.0,0.40473719]
[1760026363011,1.4549658,121420.0,121410.0,0.44877719]
[1760026363214,1.70111049,121420.0,121410.0,0.44877719]
[1760026363710,1.70111049,121420.0,121410.0,0.36644469]
[1760026363711,0.95127049,121420.0,121410.0,0.36644469]
[1760026364214,1.70111049,121420.0,121410.0,0.36644469]
[1760026364411,1.70111049,121420.0,121410.0,0.44877719]
[1760026364611,1.70111049,121420.0,121410.0,0.36644469]
[1760026364612,0.95127049,121420.0,121410.0,0.36644469]
[1760026364814,1.70111049,121420.0,121410.0,0.2026325]
[1760026365216,1.94725518,121420.0,121410.0,0.44877719]
[1760026365515,1.70111049,121420.0,121410.0,0.36644469]
[1760026365718,1.94725518,121420.0,121410.0,0.36644469]
[1760026365913,1.19741518,121420.0,121410.0,0.36644469]
[1760026366119,1.94725518,121420.0,121410.0,0.2026325]
[1760026367220,1.4549658,121420.0,121410.0,0.2026325]
[1760026367521,1.94725518,121420.0,121410.0,0.2026325]
[1760026368219,1.94725518,121420.0,121410.0,0.07626]
[1760026370819,2.34725518,121420.0,121410.0,0.07626]
[1760026371022,2.34721518,121420.0,121410.0,0.07626]
[1760026371427,1.59741518,121420.0,121410.0,0.07626]
[1760026371628,0.0823325,121410.0,121400.0,0.0823373]
[1760026371826,0.95927719,121410.0,121400.0,0.0823373]
[1760026372026,1.70907719,121410.0,121400.0,0.32848199]
[1760026372326,0.95927719,121410.0,121400.0,0.32848199]
[1760026372527,1.70907719,121410.0,121400.0,0.32848199]
[1760026372931,1.70907719,121410.0,121400.0,0.0823373]
[1760026373128,1.71007719,121410.0,121400.0,0.32848199]
[1760026373330,1.4639325,121410.0,121400.0,0.37101199]
[1760026373625,1.4639325,121410.0,121400.0,1.69008137]
[1760026373626,0.271,121410.0,121400.0,1.69008137]
[1760026373931,0.271,121410.0,121400.0,2.43988137]
[1760026374325,0.272,121410.0,121400.0,1.91413058]
[1760026374530,0.272,121410.0,121400.0,2.66393058]
[1760026374728,0.272,121410.0,121400.0,2.72850452]
[1760026375026,0.272,121410.0,121400.0,2.58072531]
[1760026375628,0.27,121410.0,121400.0,2.58072531]
[1760026375830,0.271,121410.0,121400.0,2.58072531]
[1760026376425,0.271,121410.0,121400.0,1.33258733]
[1760026376930,0.271,121410.0,121400.0,2.08234733]
[1760026377429,0.271,121410.0,121400.0,1.33258733]
[1760026377729,0.271,121410.0,121400.0,2.08234733]
[1760026380732,0.271,121410.0,121400.0,1.33258733]
[1760026380931,0.271,121410.0,121400.0,2.08230733]
[1760026381228,0.271,121410.0,121400.0,1.93450062]
[1760026381434,0.271,121410.0,121400.0,1.18478062]
[1760026381627,0.59947719,121410.0,121400.0,0.18337394]
[1760026382028,0.99947719,121410.0,121400.0,0.1188]
[1760026382831,0.99947719,121410.0,121400.0,0.2011393]
[1760026383636,0.99947719,121410.0,121400.0,0.44728399]
[1760026384436,1.36027719,121410.0,121400.0,0.44728399]
[1760026385034,0.7533325,121410.0,121400.0,0.44728399]
[1760026385234,0.99947719,121410.0,121400.0,0.44728399]
[1760026385737,1.0112247,121410.0,121400.0,0.44728399]
[1760026386634,1.7609047,121410.0,121400.0,0.44728399]
[1760026387134,0.76508001,121410.0,121400.0,0.44728399]
[1760026387334,0.76508001,121410.0,121400.0,0.69342868]
[1760026387335,1.5030125,121410.0,121400.0,0.69342868]
[1760026387533,1.5030125,121410.0,121400.0,0.44728399]
[1760026387929,0.271,121410.0,121400.0,1.30037337]
[1760026388135,0.271,121410.0,121400.0,2.45005337]
[1760026389240,0.271,121410.0,121400.0,2.35139055]
[1760026390041,0.271,121410.0,121400.0,1.84785524]
[1760026390340,0.271,121410.0,121400.0,2.35139055]
[1760026391339,0.271,121410.0,121400.0,2.59753524]
[1760026391838,0.271,121410.0,121400.0,1.84785524]
[1760026392445,0.271,121410.0,121400.0,2.59749524]
[1760026393840,0.271,121410.0,121400.0,1.84785524]
[1760026394042,0.271,121410.0,121400.0,2.35135055]
[1760026394541,0.271,121410.0,121400.0,1.60171055]
[1760026394842,0.271,121410.0,121400.0,2.35135055]